lending/lending_fUSD_20260317
["ID","MTS","AMOUNT","RATE_DAILY","PERIOD"]
[408475435,1773706129972,176.66,9.489e-05,2]
[408475456,1773706231464,-191.96063111,0.00010546,2]
[408475457,1773706231474,-151.33229403,0.00010546,2]
[408475458,1773706231524,-84.66770597,0.00010546,2]
[408475459,1773706231534,-241.36401695,0.00010573,2]
[408475460,1773706231546,-8.63598305,0.00010573,2]
[408475461,1773706231555,-818.44875243,0.00010646,2]
[408475462,1773706231567,-267.37735194,0.00010646,2]
[408475463,1773706231579,-28.99384463,0.00010646,2]
[408475464,1773706231589,-285.00475559,0.00010831,2]
[408475465,1773706231599,-300.0,0.00011231,2]
[408475466,1773706231608,-243.0,0.00011231,2]
[408475467,1773706231618,-1200.0,0.00011231,2]
[408475468,1773706231627,-1200.0,0.00011232,2]
[408475469,1773706231637,-300.0,0.00011232,2]
[408475470,1773706231646,-166.66,0.00011268,2]
[408475471,1773706231656,-388.12718647,0.00011413,2]
[408475472,1773706231665,-166.66,0.00011505,2]
[408475474,1773706231674,-1366.54288087,0.00011507,2]
[408475475,1773706231693,-244.55711913,0.00011507,2]
[408475476,1773706231703,-250.0,0.00011601,2]
[408475477,1773706231713,-5000.0,0.00011601,2]
[408475478,1773706231722,-5000.0,0.00011601,2]
[408475479,1773706231732,-5000.0,0.00011601,2]
[408475481,1773706231741,-5000.0,0.00011601,2]
[408475483,1773706231751,-191.96063109,0.00011697,2]
[408475485,1773706231760,-2709.93,0.00011711,2]
[408475487,1773706231770,-193.63757919,0.00011711,2]
[408475489,1773706231780,-1344.0,0.00011713,2]
[408475491,1773706231789,-166.66,0.00011743,2]
[408475493,1773706231799,-500.0,0.00011761,2]
[408475496,1773706231808,-5533.0,0.000118,5]
[408475499,1773706231817,-200.0,0.00011854,2]
[408475502,1773706231827,-150.0,0.0001186,2]
[408475504,1773706231836,-152.74,0.00011861,2]
[408475506,1773706231846,-4246.41,0.00011861,2]
[408475508,1773706231855,-3427.26,0.00011861,2]
[408475510,1773706231864,-1944.04,0.00011861,2]
[408475511,1773706231874,-2682.53,0.00011861,2]
[408475512,1773706231883,-500.0,0.00011861,3]
[408475513,1773706231892,-156.19,0.00011861,2]
[408475514,1773706231902,-500.0,0.00011861,2]
[408475515,1773706231911,-1772.61,0.00011861,2]
[408475516,1773706231921,-5172.73,0.00011861,2]
[408475517,1773706231930,-166.66,0.0001198,2]
[408475518,1773706231940,-365.16,0.00012104,2]
[408475519,1773706231949,-5271.73370581,0.00012141,2]
[408475520,1773706231959,-166.66,0.00012217,2]
[408475521,1773706231968,-835.0,0.00012219,2]
[408475522,1773706231977,-420.0,0.00012339,2]
[408475523,1773706231988,-423.0,0.0001234,2]
[408475524,1773706231998,-420.0,0.0001234,2]
[408475525,1773706232008,-1680.0,0.00012354,2]
[408475526,1773706232018,-166.66,0.00012454,2]
[408475527,1773706232027,-156.19,0.00012603,2]
[408475528,1773706232037,-503.0,0.00012731,2]
[408475529,1773706232050,-150.0,0.00012731,2]
[408475530,1773706232060,-503.0,0.00012786,2]
[408475531,1773706232069,-150.0,0.00012786,2]
[408475532,1773706232079,-503.0,0.00012841,2]
[408475533,1773706232088,-150.0,0.00012841,2]
[408475534,1773706232098,-191.96063109,0.00012847,2]
[408475535,1773706232107,-500.0,0.00012847,2]
[408475536,1773706232117,-503.0,0.00012895,2]
[408475537,1773706232127,-150.0,0.00012895,2]
[408475538,1773706232136,-200.0,0.000129,2]
[408475539,1773706232146,-4798.53911131,0.00012914,2]
[408475540,1773706232155,-220.62060052,0.00012916,2]
[408475541,1773706232165,-255.0,0.0001294,2]
[408475542,1773706232174,-8882.6885148,0.00012946,2]
[408475543,1773706232184,-500.0,0.00012946,2]
[408475544,1773706232194,-500.0,0.00012946,2]
[408475545,1773706232204,-500.0,0.00012946,2]
[408475546,1773706232214,-500.0,0.00012946,2]
[408475547,1773706232224,-500.0,0.00012946,2]
[408475548,1773706232236,-500.0,0.00012946,2]
[408475549,1773706232246,-500.0,0.00012946,2]
[408475550,1773706232259,-500.0,0.00012946,2]
[408475551,1773706232269,-500.0,0.00012946,2]
[408475552,1773706232278,-500.0,0.00012946,2]
[408475553,1773706232289,-500.0,0.00012946,2]
[408475554,1773706232299,-631.73775343,0.00012946,2]
[408475555,1773706232309,-503.0,0.0001295,2]
[408475556,1773706232319,-150.0,0.0001295,2]
[408475557,1773706232329,-311.77613807,0.00013001,2]
[408475558,1773706232339,-1000.0,0.00013004,2]
[408475559,1773706232349,-343.2423,0.00013005,2]
[408475560,1773706232359,-17568.8215,0.00013005,2]
[408475561,1773706232369,-1646.5994,0.00013005,2]
[408475562,1773706232575,-503.0,0.00013005,2]
[408475563,1773706232587,-250.0,0.00013005,2]
[408475564,1773706232597,-485.09131724,0.00013005,2]
[408475565,1773706232606,-503.0,0.0001306,2]
[408475566,1773706232616,-159.50117954,0.00013102,2]
[408475567,1773706232626,-23637.261616,0.00013105,2]
[408475568,1773706232635,-498.8846522,0.00013105,2]
[408475569,1773706232644,-206.00832229,0.00013105,2]
[408475570,1773706232654,-503.0,0.00013115,2]
[408475571,1773706232664,-500.0,0.00013121,2]
[408475572,1773706232674,-3814.45880097,0.00013141,2]
[408475573,1773706232684,-503.0,0.00013169,2]
[408475574,1773706232694,-153.1314123,0.00013218,2]
[408475575,1773706232704,-503.0,0.00013224,2]
[408475576,1773706232713,-700.0,0.00013247,2]
[408475577,1773706232723,-150.0,0.00013248,2]
[408475578,1773706232733,-576.57,0.00013274,2]
[408475579,1773706232748,-503.0,0.00013279,2]
[408475580,1773706232763,-205.82646022,0.00013286,2]
[408475581,1773706232772,-11077.14095495,0.00013287,2]
[408475582,1773706232783,-179.01624,0.00013316,2]
[408475583,1773706232792,-259.8,0.00013317,2]
[408475584,1773706232802,-503.0,0.00013334,2]
[408475585,1773706232812,-156.19,0.00013344,2]
[408475586,1773706232822,-195.48,0.0001335,2]
[408475587,1773706232831,-3489.1489,0.00013375,2]
[408475588,1773706232840,-36449.3798,0.00013375,2]
[408475589,1773706232850,-503.0,0.00013389,2]
[408475590,1773706232860,-3053.31246359,0.00013393,2]
[408475591,1773706232870,-640.3340267,0.00013395,2]
[408475592,1773706232880,-256.590232,0.00013425,2]
[408475593,1773706232889,-245.534813,0.00013425,2]
[408475594,1773706232898,-199.199662,0.00013425,2]
[408475595,1773706232908,-193.907728,0.00013425,2]
[408475596,1773706232918,-160.0,0.00013425,2]
[408475597,1773706232927,-295.283235,0.00013425,2]
[408475598,1773706232936,-430.566471,0.00013425,2]
[408475599,1773706232946,-3240.0,0.00013425,2]
[408475600,1773706232956,-150.0,0.00013432,2]
[408475601,1773706232970,-503.0,0.00013443,2]
[408475602,1773706232979,-1500.0,0.00013451,2]
[408475603,1773706232993,-503.0,0.00013498,2]
[408475604,1773706233002,-539.24827484,0.00013506,2]
[408475605,1773706233230,-1960.75172516,0.00013506,2]
[408475606,1773706233245,-179.01624,0.00013516,2]
[408475607,1773706233257,-1600.0,0.00013522,2]
[408475608,1773706233267,-503.0,0.00013553,2]
[408475609,1773706233277,-587.0,0.00013556,2]
[408475610,1773706233287,-300.0,0.00013557,2]
[408475611,1773706233297,-2147.32585175,0.0001359,2]
[408475612,1773706233310,-203.67414825,0.0001359,2]
[408475613,1773706233321,-10029.4126728,0.00013599,2]
[408475614,1773706233332,-503.0,0.00013608,2]
[408475615,1773706233342,-503.0,0.00013663,2]
[408475616,1773706233351,-849.02202352,0.00013698,2]
[408475617,1773706233361,-849.02202352,0.00013698,2]
[408475618,1773706233372,-849.02202352,0.00013698,2]
[408475619,1773706233381,-849.02202352,0.00013698,2]
[408475620,1773706233390,-849.02202352,0.00013698,2]
[408475621,1773706233399,-849.02202352,0.00013698,2]
[408475622,1773706233409,-849.02202352,0.00013698,2]
[408475623,1773706233418,-849.02202352,0.00013698,2]
[408475624,1773706233428,-849.02202352,0.00013698,2]
[408475625,1773706233437,-849.02202352,0.00013698,2]
[408475626,1773706233447,-849.02202352,0.00013698,2]
[408475627,1773706233456,-849.02202352,0.00013698,2]
[408475628,1773706233466,-849.02202352,0.00013698,2]
[408475629,1773706233479,-849.02202352,0.00013698,2]
[408475630,1773706233490,-849.02202352,0.00013698,2]
[408475631,1773706233499,-849.02202352,0.00013698,2]
[408475632,1773706233509,-849.02202352,0.00013698,2]
[408475633,1773706233518,-849.02202352,0.00013698,2]
[408475634,1773706233527,-849.02202352,0.00013698,2]
[408475635,1773706233536,-849.02202352,0.00013698,2]
[408475636,1773706233545,-849.02202352,0.00013698,2]
[408475637,1773706233554,-849.02202352,0.00013698,2]
[408475638,1773706233564,-849.02202352,0.00013698,2]
[408475639,1773706233573,-849.02202352,0.00013698,2]
[408475640,1773706233582,-849.02202352,0.00013698,2]
[408475641,1773706233592,-849.02202352,0.00013698,2]
[408475642,1773706233601,-849.02202352,0.00013698,2]
[408475643,1773706233611,-849.02202352,0.00013698,2]
[408475644,1773706233619,-849.02202352,0.00013698,2]
[408475645,1773706233629,-849.02202352,0.00013698,2]
[408475646,1773706233639,-849.02202352,0.00013698,2]
[408475647,1773706233648,-849.02202352,0.00013698,2]
[408475648,1773706233657,-849.02202352,0.00013698,2]
[408475649,1773706233670,-849.02202352,0.00013698,2]
[408475650,1773706233680,-849.02202352,0.00013698,2]
[408475651,1773706233689,-849.02202352,0.00013698,2]
[408475652,1773706233699,-849.02202352,0.00013698,2]
[408475653,1773706233708,-849.02202352,0.00013698,2]
[408475654,1773706233718,-849.02202352,0.00013698,2]
[408475655,1773706233728,-849.02202352,0.00013698,2]
[408475656,1773706233739,-849.02202352,0.00013698,2]
[408475657,1773706233748,-849.02202352,0.00013698,2]
[408475658,1773706233758,-849.02202352,0.00013698,2]
[408475659,1773706233768,-849.02202352,0.00013698,2]
[408475660,1773706233777,-849.02202352,0.00013698,2]
[408475661,1773706233788,-849.02202352,0.00013698,2]
[408475662,1773706233797,-849.02202352,0.00013698,2]
[408475663,1773706233807,-849.02202352,0.00013698,2]
[408475664,1773706233817,-849.02202352,0.00013698,2]
[408475665,1773706233827,-849.02202352,0.00013698,2]
[408475666,1773706233837,-849.02202352,0.00013698,2]
[408475667,1773706233846,-405.72903137,0.00013698,2]
[408475668,1773706233860,-443.29299215,0.00013698,2]
[408475669,1773706233873,-263.53116102,0.00013698,2]
[408475670,1773706233886,-585.4908625,0.00013698,2]
[408475671,1773706233896,-849.02202352,0.00013698,2]
[408475672,1773706233906,-849.02202352,0.00013698,2]
[408475673,1773706233916,-571.38572546,0.00013698,2]
[408475674,1773706233965,-277.63629806,0.00013698,2]
[408475675,1773706233975,-586.42576861,0.00013698,2]
[408475676,1773706233998,-262.59625491,0.00013698,2]
[408475677,1773706234010,-162.24659867,0.00013698,2]
[408475678,1773706234022,-686.77542485,0.00013698,2]
[408475679,1773706234032,-849.02202352,0.00013698,2]
[408475680,1773706234043,-849.02202352,0.00013698,2]
[408475681,1773706234052,-179.96227929,0.00013698,2]
[408475682,1773706234064,-669.05974423,0.00013698,2]
[408475683,1773706234073,-31.30175921,0.00013698,2]
[408475684,1773706234086,-817.72026431,0.00013698,2]
[408475685,1773706234096,-491.96737935,0.00013698,2]
[408475686,1773706234108,-357.05464417,0.00013698,2]
[408475687,1773706234117,-849.02202352,0.00013698,2]
[408475688,1773706234127,-849.02202352,0.00013698,2]
[408475689,1773706234137,-849.02202352,0.00013698,2]
[408475690,1773706234147,-344.29562555,0.00013698,2]
[408475696,1773706238885,-8179.97,0.00011861,2]
[408475697,1773706238895,-154.50624171,0.00013698,2]
[408475698,1773706238907,-154.50624171,0.00013698,2]
[408475699,1773706238918,-2112.93,0.00013699,2]
[408475700,1773706238928,-4999.99,0.00013699,2]
[408475701,1773706238938,-42681.04,0.00013699,2]
[408475702,1773706238949,-312.42,0.00013699,2]
[408475703,1773706238958,-299.99,0.00013699,2]
[408475704,1773706238967,-14512.39,0.00013699,2]
[408475705,1773706238976,-7159.53,0.00013699,2]
[408475706,1773706238985,-150.99,0.00013699,2]
[408475707,1773706238996,-9999.99,0.00013699,2]
[408475708,1773706239005,-1188.59,0.00013699,2]
[408475709,1773706239014,-6277.51,0.00013699,2]
[408475710,1773706239024,-1546.61,0.00013699,2]
[408475711,1773706239034,-150.99,0.00013699,2]
[408475712,1773706239043,-1041.46,0.00013699,2]
[408475713,1773706239052,-9999.99,0.00013699,2]
[408475714,1773706239061,-9999.99,0.00013699,2]
[408475715,1773706239070,-9999.99,0.00013699,2]
[408475716,1773706239080,-15440.37693165,0.00013699,2]
[408475738,1773706242642,-12525.42306835,0.00013699,2]
[408475739,1773706242652,-200.0,0.00013699,2]
[408475740,1773706242661,-16337.08,0.00013699,2]
[408475741,1773706242670,-151.0,0.00013699,2]
[408475742,1773706242680,-151.0,0.00013699,2]
[408475743,1773706242689,-179.01625,0.00013716,2]
[408475744,1773706242698,-503.0,0.00013717,2]
[408475745,1773706242707,-2148.71,0.0001374,2]
[408475746,1773706242716,-292.837744,0.00013741,7]
[408475747,1773706242726,-160.0,0.00013741,7]
[408475748,1773706242735,-316.486763,0.00013741,7]
[408475749,1773706242747,-472.973527,0.00013741,7]
[408475750,1773706242756,-503.0,0.00013772,2]
[408475751,1773706242766,-1646.0,0.00013814,5]
[408475752,1773706242775,-203.366641,0.00013817,7]
[408475753,1773706242785,-503.0,0.00013827,2]
[408475754,1773706242794,-160.0,0.00013871,7]
[408475755,1773706242804,-439.866361,0.00013871,7]
[408475756,1773706242814,-719.732723,0.00013871,7]
[408475757,1773706242825,-503.0,0.00013882,2]
[408475758,1773706242835,-179.01624,0.00013916,2]
[408475759,1773706242844,-503.0,0.00013936,2]
[408475760,1773706242854,-519.0,0.00013991,2]
[408475761,1773706242863,-229.62650414,0.00013999,2]
[408475762,1773706242872,-279.34547094,0.00013999,2]
[408475763,1773706242881,-500.0,0.00013999,2]
[408475764,1773706242890,-597.33871537,0.00013999,2]
[408475765,1773706242899,-500.0,0.00013999,2]
[408475766,1773706242909,-824.42530788,0.00014,2]
[408475767,1773706242918,-11077.14095486,0.00014022,2]
[408475768,1773706242927,-156.19,0.00014085,2]
[408475769,1773706242937,-2109.0,0.00014099,5]
[408475770,1773706242946,-433.0,0.00014114,2]
[408475771,1773706242955,-485.09131721,0.00014154,2]
[408475772,1773706242964,-10029.41267272,0.00014299,2]
[408475773,1773706242973,-10381.97639811,0.0001439,2]
[408475774,1773706242982,-3756.0,0.00014421,2]
[408475775,1773706242994,-6003.0,0.00014421,2]
[408475776,1773706243003,-2424.99959176,0.00014421,2]
[408475777,1773706243015,-39.00040824,0.00014421,2]
[408475778,1773706243025,-2148.71,0.00014427,2]
[408475779,1773706243035,-2000.0,0.0001455,2]
[408475780,1773706243044,-498.8846522,0.00014592,2]
[408475781,1773706243053,-166.66,0.000146,2]
[408475782,1773706243062,-151.0,0.00014634,2]
[408475783,1773706243071,-530.0,0.000147,2]
[408475784,1773706243081,-11077.14095486,0.00014757,2]
[408475785,1773706243089,-5274.1859698,0.00014766,2]
[408475786,1773706243098,-156.19,0.00014827,2]
[408475787,1773706243107,-823.0,0.00014893,2]
[408475788,1773706243116,-3292.0,0.00014948,2]
[408475789,1773706243125,-365.16,0.00014976,2]
[408475790,1773706243134,-10029.41267272,0.00014999,2]
[408475791,1773706243143,-29514.51271304,0.00015,7]
[408475792,1773706243153,-250.0,0.00015,2]
[408475793,1773706243162,-1600.0,0.00015025,2]
[408475794,1773706243171,-166.66,0.00015082,2]
[408475795,1773706243180,-2148.71,0.00015114,2]
[408475796,1773706243189,-11181.0,0.00015135,2]
[408475797,1773706243198,-669.0,0.00015135,2]
[408475798,1773706243208,-1176.8299601,0.00015136,2]
[408475799,1773706243217,-150.0,0.00015198,2]
[408475800,1773706243227,-165.54,0.00015198,2]
[408475801,1773706243235,-200.0,0.00015198,2]
[408475802,1773706243246,-216.0,0.00015198,2]
[408475803,1773706243260,-150.0,0.00015198,2]
[408475804,1773706243269,-150.0,0.00015198,2]
[408475806,1773706243278,-150.0,0.00015198,2]
[408475807,1773706243288,-150.0,0.00015198,2]
[408475808,1773706243299,-150.0,0.00015198,2]
[408475809,1773706243308,-150.0,0.00015198,2]
[408475810,1773706243317,-150.0,0.00015198,2]
[408475811,1773706243326,-150.0,0.00015198,2]
[408475812,1773706243336,-623.844,0.00015198,2]
[408475813,1773706243346,-1044.0,0.00015198,2]
[408475814,1773706243355,-3511.0,0.00015198,2]
[408475815,1773706243364,-150.0,0.00015198,2]
[408475816,1773706243373,-1260.0,0.00015198,2]
[408475817,1773706243382,-1214.0,0.00015198,2]
[408475818,1773706243391,-923.0,0.00015198,2]
[408475819,1773706243401,-387.67949591,0.0001522,2]
[408475820,1773706243410,-387.67,0.00015224,2]
[408475821,1773706243419,-485.09131721,0.00015303,2]
[408475822,1773706243428,-1600.0,0.00015342,2]
[408475823,1773706243437,-1400.0,0.00015342,2]
[408475824,1773706243447,-2302.0,0.00015355,5]
[408475825,1773706243456,-736.0,0.00015407,2]
[408475826,1773706243465,-1154.656047,0.00015438,7]
[408475827,1773706243474,-896.39848,0.00015438,7]
[408475828,1773706243483,-872.584777,0.00015438,7]
[408475829,1773706243493,-11077.14095486,0.00015491,2]
[408475830,1773706243502,-3356.28,0.00015507,2]
[408475831,1773706243511,-269.57,0.0001556,2]
[408475832,1773706243520,-166.66,0.00015564,2]
[408475833,1773706243531,-156.19,0.00015568,2]
[408475834,1773706243539,-600.0,0.00015616,2]
[408475835,1773706243549,-194.1,0.00015696,2]
[408475836,1773706243558,-288.44,0.00015697,2]
[408475837,1773706243567,-10029.41267272,0.00015699,2]
[408475838,1773706243576,-336.61,0.00015755,2]
[408475839,1773706243585,-324.01,0.0001577,2]
[408475840,1773706243595,-152.0,0.00015787,3]
[408475841,1773706243604,-2148.71,0.000158,2]
[408475842,1773706243614,-2000.0,0.0001589,2]
[408475843,1773706243625,-3356.28,0.00015895,2]
[408475844,1773706243635,-2000.0,0.00016005,2]
[408475845,1773706243646,-166.66,0.00016046,2]
[408475846,1773706243655,-168.0,0.00016066,2]
[408475847,1773706243664,-498.8846522,0.00016079,2]
[408475848,1773706243674,-153.82074775,0.00016085,2]
[408475849,1773706243683,-306.918516,0.0001611,7]
[408475850,1773706243692,-1660.9682,0.0001611,7]
[408475851,1773706243701,-186.63910164,0.00016198,2]
[408475852,1773706243710,-11077.14095486,0.00016226,2]
[408475853,1773706243721,-3356.28,0.00016282,2]
[408475854,1773706243730,-365.16,0.00016289,2]
[408475855,1773706243739,-156.19,0.00016309,2]
[408475856,1773706243749,-3832.229,0.00016328,2]
[408475857,1773706243758,-191.439,0.00016328,2]
[408475858,1773706243767,-1152.0,0.00016362,2]
[408475859,1773706243776,-10029.41267272,0.00016399,2]
[408475860,1773706243785,-233.0,0.00016438,2]
[408475861,1773706243795,-500.0,0.00016438,2]
[408475862,1773706243804,-151.0,0.00016438,2]
[408475863,1773706243813,-178.70672251,0.00016438,2]
[408475864,1773706243823,-200.0,0.00016438,2]
[408475865,1773706243832,-200.0,0.00016438,2]
[408475866,1773706243841,-200.0,0.00016438,2]
[408475867,1773706243850,-200.0,0.00016438,2]
[408475868,1773706243859,-200.0,0.00016438,2]
[408475869,1773706243869,-200.0,0.00016438,2]
[408475870,1773706243878,-200.0,0.00016438,2]
[408475871,1773706243887,-200.0,0.00016438,2]
[408475872,1773706243896,-200.0,0.00016438,2]
[408475873,1773706243905,-200.0,0.00016438,2]
[408475874,1773706243914,-200.0,0.00016438,2]
[408475875,1773706243923,-200.0,0.00016438,2]
[408475876,1773706243932,-4609.0,0.00016443,2]
[408475877,1773706243941,-485.09131721,0.00016453,2]
[408475878,1773706243950,-2148.71,0.00016487,2]
[408475879,1773706243959,-1186.825363,0.0001649,7]
[408475880,1773706243968,-500.0,0.00016493,2]
[408475881,1773706243977,-168.0,0.00016494,2]
[408475882,1773706243986,-347.19864039,0.00016504,2]
[408475883,1773706243997,-1600.0,0.00016527,2]
[408475884,1773706244006,-166.66,0.00016528,2]
[408475885,1773706244016,-500.0,0.00016548,2]
[408475886,1773706244025,-500.0,0.00016602,2]
[408475887,1773706244034,-1944.04,0.00016606,2]
[408475888,1773706244043,-500.0,0.00016657,2]
[408475889,1773706244053,-3356.28,0.0001667,2]
[408475890,1773706244063,-500.0,0.00016712,2]
[408475891,1773706244074,-1600.0,0.00016712,7]
[408475892,1773706244084,-1400.0,0.00016712,7]
[408475893,1773706244094,-166.71,0.00016712,2]
[408475894,1773706244105,-500.0,0.00016767,2]
[408475895,1773706244114,-1252.0,0.00016806,2]
[408475896,1773706244123,-500.0,0.00016822,2]
[408475897,1773706244134,-500.0,0.00016876,2]
[408475898,1773706244143,-5000.0,0.000169,2]
[408475899,1773706244152,-500.0,0.00016931,2]
[408475900,1773706244162,-168.0,0.00016958,2]
[408475901,1773706244173,-11077.14095486,0.00016961,2]
[408475902,1773706244182,-500.0,0.00016973,2]
[408475903,1773706244191,-500.0,0.00016973,2]
[408475904,1773706244202,-500.0,0.00016973,2]
[408475905,1773706244211,-500.0,0.00016986,2]
[408475906,1773706244221,-600.0,0.00016986,7]
[408475907,1773706244232,-257.94885563,0.0001699,2]
[408475908,1773706244242,-4933.73101923,0.00017,30]
[408475909,1773706244253,-160215.78924681,0.00017,2]
[408475910,1773706244584,-57833.03949158,0.00017,2]
[408475911,1773706244596,-4276.35565955,0.00017,2]
[408475912,1773706244607,-19395.16533113,0.00017,2]
[408475913,1773706244619,-20503.50605604,0.00017,2]
[408475914,1773706244638,-200.0,0.00016438,2]
[408475915,1773706244648,-6082.49487796,0.00017,2]
[408475916,1773706244658,-443.4506406,0.00017,2]
[408475917,1773706244669,-268.01556327,0.00017,2]
[408475919,1773706245744,-200.0,0.00016438,2]
[408475920,1773706245755,-191.02114709,0.00016438,2]
[408475921,1773706245790,-8.97885291,0.00016438,2]
[408475922,1773706245800,-200.0,0.00016438,2]
[408475923,1773706245809,-200.0,0.00016438,2]
[408475924,1773706245819,-200.0,0.00016438,2]
[408475925,1773706245829,-200.0,0.00016438,2]
[408475926,1773706245838,-200.0,0.00016438,2]
[408475927,1773706245847,-175230.21288644,0.00017,2]
[408475928,1773706245857,-73810.87054559,0.00017,2]
[408475929,1773706245866,-300.0,0.00017,2]
[408475930,1773706245875,-511.0,0.00017,2]
[408475931,1773706245885,-151.0,0.00017,2]
[408475932,1773706245895,-151.0,0.00017,2]
[408475933,1773706245904,-166.66,0.0001701,2]
[408475934,1773706245913,-500.0,0.00017041,2]
[408475935,1773706245923,-156.19,0.00017051,2]
[408475936,1773706245932,-3356.28,0.00017058,2]
[408475937,1773706245942,-500.0,0.0001707,2]
[408475938,1773706245951,-500.0,0.0001707,2]
[408475939,1773706245960,-288.77707156,0.00017095,2]
[408475940,1773706245969,-500.0,0.00017096,2]
[408475941,1773706245978,-10029.41267272,0.000171,2]
[408475942,1773706245987,-168.0,0.00017107,2]
[408475943,1773706245997,-295.0,0.00017139,7]
[408475944,1773706246006,-929.29934698,0.00017146,2]
[408475945,1773706246016,-160.0,0.00017146,2]
[408475946,1773706246024,-500.0,0.0001715,2]
[408475947,1773706246033,-506.0,0.00017195,2]
[408475948,1773706246043,-506.0,0.00017203,2]
[408475949,1773706246053,-500.0,0.00017205,2]
[408475950,1773706246064,-1232.0,0.00017258,2]
[408475952,1773706246073,-193.54220131,0.0001726,2]
[408475953,1773706246082,-150.0,0.0001726,2]
[408475954,1773706246091,-15489.25796832,0.0001726,2]
[408475955,1773706246101,-79501.45108246,0.0001726,2]
[408475956,1773706246116,-355957.60157915,0.0001726,2]
[408475957,1773706246126,-500.0,0.0001727,2]
[408475958,1773706246135,-500.0,0.0001727,2]
[408475959,1773706246144,-500.0,0.0001727,2]
[408475960,1773706246154,-506.0,0.00017282,2]
[408475961,1773706246164,-100333.31464326,0.000173,2]
[408475963,1773707020799,4226.0,0.0001,10]
[408475964,1773707193603,318.3,6.108e-05,2]
[408475965,1773707193642,318.3,6.43e-05,2]
[408475966,1773707193815,318.3,6.751e-05,2]
[408475967,1773707194075,318.3,7.073e-05,2]
[408475968,1773707194349,318.3,7.394e-05,2]
[408475969,1773707194564,318.3,7.716e-05,2]
[408475970,1773707194812,318.3,8.037e-05,2]
[408475971,1773707195212,318.3,8.359e-05,2]
[408475972,1773707195499,318.3,8.68e-05,2]
[408475973,1773707195993,318.3,9.002e-05,2]
[408475974,1773707196034,318.3,9.323e-05,2]
[408475978,1773707432808,-229.0,9.644e-05,2]
[408475979,1773707432818,-318.3,9.644e-05,2]
[408475980,1773707432829,-250.0,9.805e-05,2]
[408475981,1773707432838,-318.3,9.966e-05,2]
[408475982,1773707432851,-254.07115113,0.00010287,2]
[408475983,1773707432861,-318.3,0.00010287,2]
[408475984,1773707432871,-318.3,0.00010609,2]
[408475985,1773707432881,-250.0,0.00010609,2]
[408475986,1773707432890,-167.80780238,0.0001093,2]
[408475987,1773707432903,-150.49219762,0.0001093,2]
[408475988,1773707432914,-107.38300238,0.00011252,2]
[408475989,1773707432927,-210.91699762,0.00011252,2]
[408475990,1773707432937,-318.3,0.00011573,2]
[408475991,1773707432947,-2209.16173957,0.00011606,2]
[408475992,1773707432960,-1797.64826043,0.00011606,2]
[408475994,1773707432971,-200.0,0.00011631,2]
[408475995,1773707432980,-300.0,0.00011858,2]
[408475997,1773707432989,-225.0,0.00011859,2]
[408475999,1773707432999,-1200.0,0.00011859,2]
[408476000,1773707433009,-1500.0,0.00011861,2]
[408476001,1773707433018,-960.24,0.00011861,2]
[408476002,1773707433028,-150.0,0.00011861,2]
[408476003,1773707433037,-318.3,0.00011895,2]
[408476004,1773707433052,-373.0,0.00012035,2]
[408476005,1773707433062,-3413.39,0.00012055,2]
[408476007,1773707433071,-243.79674454,0.00012216,2]
[408476014,1773707433122,-74.50325546,0.00012216,2]
[408476016,1773707433132,-862.656,0.00012547,2]